[Event "Early-Titled-Tuesday-Blitz-May-14-2024"]
[Site "Chess.com"]
[Date "2024.05.14"]
[Round "8"]
[White "Incognizance"]
[Black "Knightmare1014"]
[Result "0-1"]
[WhiteElo "1978"]
[BlackElo "2282"]
[TimeControl "180+1"]
[EndTime "9:28:12 PDT"]
[Termination "Knightmare1014 won by resignation"]

1. d4 {[%clk 0:03:00.9]} 1... d5 {[%clk 0:02:59.6]} 2. c4 {[%clk 0:03:00.8]}
2... e6 {[%clk 0:02:59.9]} 3. Nc3 {[%clk 0:03:01.2]} 3... Nf6 {[%clk 0:03:00.3]}
4. Bg5 {[%clk 0:03:01.9]} 4... Be7 {[%clk 0:03:00.4]} 5. e3 {[%clk 0:03:02.6]}
5... h6 {[%clk 0:02:59.4]} 6. Bh4 {[%clk 0:03:02.6]} 6... Nbd7 {[%clk
0:02:59.7]} 7. Nf3 {[%clk 0:03:02.9]} 7... O-O {[%clk 0:02:29.9]} 8. Rc1 {[%clk
0:03:02.3]} 8... b6 {[%clk 0:02:22]} 9. Be2 {[%clk 0:03:01.9]} 9... Bb7 {[%clk
0:02:22]} 10. cxd5 {[%clk 0:03:01.2]} 10... Nxd5 {[%clk 0:02:14.7]} 11. Bxe7
{[%clk 0:03:01.1]} 11... Nxe7 {[%clk 0:02:14.4]} 12. O-O {[%clk 0:03:00.8]}
12... c5 {[%clk 0:02:14.3]} 13. dxc5 {[%clk 0:02:44.2]} 13... Nxc5 {[%clk
0:02:14.2]} 14. Qxd8 {[%clk 0:02:43.8]} 14... Rfxd8 {[%clk 0:02:13.8]} 15. Rfd1
{[%clk 0:02:44.4]} 15... Rac8 {[%clk 0:01:56.2]} 16. Kf1 {[%clk 0:02:34.6]}
16... Nd5 {[%clk 0:01:54.1]} 17. Nxd5 {[%clk 0:02:34.5]} 17... Bxd5 {[%clk
0:01:53.6]} 18. b3 {[%clk 0:02:34.5]} 18... a5 {[%clk 0:01:51.5]} 19. Ke1 {[%clk
0:02:19.7]} 19... Ne4 {[%clk 0:01:48.8]} 20. Bc4 {[%clk 0:02:04.9]} 20... Bb7
{[%clk 0:01:31.7]} 21. Rxd8+ {[%clk 0:01:55.3]} 21... Rxd8 {[%clk 0:01:31.5]}
22. Ke2 {[%clk 0:01:54.1]} 22... Rc8 {[%clk 0:01:26.9]} 23. Rc2 {[%clk
0:01:43.3]} 23... b5 {[%clk 0:01:23.2]} 24. Bd3 {[%clk 0:01:42.1]} 24... Rxc2+
{[%clk 0:01:21.3]} 25. Bxc2 {[%clk 0:01:42.6]} 25... Nc3+ {[%clk 0:01:21.5]} 26.
Kd2 {[%clk 0:01:40.9]} 26... Nxa2 {[%clk 0:01:21]} 27. Ne1 {[%clk 0:01:39.3]}
27... Nb4 {[%clk 0:01:17.4]} 28. Bd3 {[%clk 0:01:32.9]} 28... Nxd3 {[%clk
0:01:10.7]} 29. Kxd3 {[%clk 0:01:33.2]} 29... Kf8 {[%clk 0:01:10.6]} 30. g3
{[%clk 0:01:33.2]} 30... Ke7 {[%clk 0:01:10.7]} 31. Kd4 {[%clk 0:01:33.8]} 31...
Kd6 {[%clk 0:01:10.7]} 32. Nd3 {[%clk 0:01:30.5]} 32... f6 {[%clk 0:01:09.7]}
33. Nc5 {[%clk 0:01:29.9]} 33... e5+ {[%clk 0:01:08.3]} 0-1

[Event "Early-Titled-Tuesday-Blitz-May-14-2024"]
[Site "Chess.com"]
[Date "2024.05.14"]
[Round "8"]
[White "Dedic8"]
[Black "GothamChess"]
[Result "1-0"]
[WhiteElo "2894"]
[BlackElo "2728"]
[TimeControl "180+1"]
[EndTime "9:28:22 PDT"]
[Termination "Dedic8 won by resignation"]

1. d4 {[%clk 0:03:00.9]} 1... d5 {[%clk 0:02:58.7]} 2. c4 {[%clk 0:03:01.3]}
2... dxc4 {[%clk 0:02:57.8]} 3. Nf3 {[%clk 0:03:00.7]} 3... Nf6 {[%clk
0:02:57.9]} 4. e3 {[%clk 0:03:01.2]} 4... e6 {[%clk 0:02:58.6]} 5. Bxc4 {[%clk
0:03:01.7]} 5... c5 {[%clk 0:02:59.2]} 6. O-O {[%clk 0:03:02.3]} 6... cxd4
{[%clk 0:02:59.6]} 7. exd4 {[%clk 0:03:02.6]} 7... Be7 {[%clk 0:02:59.9]} 8. Nc3
{[%clk 0:03:01.9]} 8... O-O {[%clk 0:03:00.1]} 9. Re1 {[%clk 0:02:58.8]} 9... a6
{[%clk 0:02:59.5]} 10. Ne5 {[%clk 0:02:58.4]} 10... b5 {[%clk 0:02:53.9]} 11.
Qf3 {[%clk 0:02:56.8]} 11... Ra7 {[%clk 0:02:51.8]} 12. Bd3 {[%clk 0:02:57.2]}
12... g6 {[%clk 0:02:28.9]} 13. Bh6 {[%clk 0:02:44.8]} 13... Re8 {[%clk
0:02:27.8]} 14. Rad1 {[%clk 0:02:42.4]} 14... Rc7 {[%clk 0:01:46.5]} 15. Qg3
{[%clk 0:01:56]} 15... Nh5 {[%clk 0:01:38.7]} 16. Qf3 {[%clk 0:01:54.2]} 16...
Nf6 {[%clk 0:01:08]} 17. Bg5 {[%clk 0:01:40.8]} 17... Bb7 {[%clk 0:01:03]} 18.
Be4 {[%clk 0:01:39.2]} 18... b4 {[%clk 0:00:52.7]} 19. Bxb7 {[%clk 0:01:38.9]}
19... bxc3 {[%clk 0:00:52.4]} 20. bxc3 {[%clk 0:01:39.6]} 20... a5 {[%clk
0:00:31.6]} 21. a4 {[%clk 0:01:38]} 21... Kg7 {[%clk 0:00:27.8]} 22. Rb1 {[%clk
0:01:23.9]} 22... h6 {[%clk 0:00:25.1]} 23. Bxh6+ {[%clk 0:01:24.3]} 1-0

[Event "Early-Titled-Tuesday-Blitz-May-14-2024"]
[Site "Chess.com"]
[Date "2024.05.14"]
[Round "8"]
[White "jaramsdal"]
[Black "LoaySameer"]
[Result "0-1"]
[WhiteElo "2383"]
[BlackElo "2547"]
[TimeControl "180+1"]
[EndTime "9:28:28 PDT"]
[Termination "LoaySameer won by resignation"]

1. e4 {[%clk 0:03:00.9]} 1... g6 {[%clk 0:02:59.3]} 2. d4 {[%clk 0:02:59.5]}
2... Bg7 {[%clk 0:02:59.4]} 3. Nc3 {[%clk 0:03:00]} 3... d6 {[%clk 0:02:59.9]}
4. Bc4 {[%clk 0:02:59.4]} 4... Nf6 {[%clk 0:02:56.1]} 5. Qe2 {[%clk 0:02:59.2]}
5... O-O {[%clk 0:02:55.1]} 6. h3 {[%clk 0:02:56.9]} 6... Nc6 {[%clk 0:02:54.6]}
7. Nf3 {[%clk 0:02:54.9]} 7... e5 {[%clk 0:02:54.6]} 8. dxe5 {[%clk 0:02:55.8]}
8... dxe5 {[%clk 0:02:54.7]} 9. O-O {[%clk 0:02:36.7]} 9... Nd4 {[%clk
0:02:53.3]} 10. Qd3 {[%clk 0:02:27.5]} 10... Nd7 {[%clk 0:02:46.1]} 11. Ne2
{[%clk 0:02:12.2]} 11... Nc5 {[%clk 0:02:43.3]} 12. Qe3 {[%clk 0:02:12.7]} 12...
Nce6 {[%clk 0:02:20.3]} 13. c3 {[%clk 0:02:08.3]} 13... Nc2 {[%clk 0:02:19.4]}
14. Qd2 {[%clk 0:02:02.6]} 14... Nxa1 {[%clk 0:02:17.5]} 15. Bd3 {[%clk
0:01:55.2]} 15... Nc5 {[%clk 0:02:13.2]} 16. Bb1 {[%clk 0:01:53.4]} 16... Be6
{[%clk 0:02:12.3]} 17. b4 {[%clk 0:01:48.6]} 17... Na4 {[%clk 0:01:57.2]} 18.
Qe3 {[%clk 0:01:28]} 18... a5 {[%clk 0:01:21]} 19. Ba3 {[%clk 0:01:13.5]} 19...
axb4 {[%clk 0:01:16.3]} 20. Bxb4 {[%clk 0:01:14.4]} 20... c5 {[%clk 0:01:17.1]}
21. Ba3 {[%clk 0:01:13.2]} 21... Qb6 {[%clk 0:00:48.4]} 22. Bd3 {[%clk
0:01:10.8]} 22... c4 {[%clk 0:00:47.5]} 23. Rb1 {[%clk 0:01:01.5]} 23... Qxe3
{[%clk 0:00:46.8]} 24. fxe3 {[%clk 0:01:00.6]} 24... cxd3 {[%clk 0:00:47.4]} 0-1

[Event "Early-Titled-Tuesday-Blitz-May-14-2024"]
[Site "Chess.com"]
[Date "2024.05.14"]
[Round "8"]
[White "Iskusnyh"]
[Black "lucasmito"]
[Result "1-0"]
[WhiteElo "2596"]
[BlackElo "2715"]
[TimeControl "180+1"]
[EndTime "9:28:32 PDT"]
[Termination "Iskusnyh won by resignation"]

1. d4 {[%clk 0:02:52.6]} 1... d5 {[%clk 0:02:57.9]} 2. c4 {[%clk 0:02:50.5]}
2... dxc4 {[%clk 0:02:58.8]} 3. e3 {[%clk 0:02:50.3]} 3... e5 {[%clk 0:02:59.1]}
4. Bxc4 {[%clk 0:02:48.7]} 4... exd4 {[%clk 0:03:00]} 5. exd4 {[%clk 0:02:48.8]}
5... Nf6 {[%clk 0:03:00.7]} 6. Nf3 {[%clk 0:02:49.2]} 6... Bd6 {[%clk
0:03:01.1]} 7. O-O {[%clk 0:02:48.2]} 7... O-O {[%clk 0:03:01.8]} 8. Nc3 {[%clk
0:02:48.5]} 8... Nc6 {[%clk 0:03:00.9]} 9. Bg5 {[%clk 0:02:45.3]} 9... h6 {[%clk
0:03:01.5]} 10. Bh4 {[%clk 0:02:45]} 10... Bg4 {[%clk 0:03:02.2]} 11. Qd3 {[%clk
0:02:41.1]} 11... Bxf3 {[%clk 0:03:00.8]} 12. Qxf3 {[%clk 0:02:40.8]} 12... Nxd4
{[%clk 0:03:01.5]} 13. Qxb7 {[%clk 0:02:38.1]} 13... Nf5 {[%clk 0:03:02.1]} 14.
Bxf6 {[%clk 0:02:32.3]} 14... Qxf6 {[%clk 0:03:03]} 15. Qf3 {[%clk 0:02:29.4]}
15... Rab8 {[%clk 0:03:00.2]} 16. b3 {[%clk 0:01:55]} 16... Qe5 {[%clk 0:02:34]}
17. g3 {[%clk 0:01:50.4]} 17... Nd4 {[%clk 0:02:34.6]} 18. Qe4 {[%clk
0:01:41.4]} 18... Rfe8 {[%clk 0:02:27.6]} 19. Qxe5 {[%clk 0:01:33.5]} 19... Bxe5
{[%clk 0:02:26.1]} 20. Rac1 {[%clk 0:01:32.9]} 20... Nf3+ {[%clk 0:02:24.5]} 21.
Kg2 {[%clk 0:01:31.6]} 21... Nd2 {[%clk 0:02:25.4]} 22. Rfe1 {[%clk 0:01:25.5]}
22... Nxc4 {[%clk 0:02:06.6]} 23. bxc4 {[%clk 0:01:26.4]} 23... Kf8 {[%clk
0:01:52.6]} 24. Rc2 {[%clk 0:01:19.1]} 24... c6 {[%clk 0:01:46.8]} 25. Re3
{[%clk 0:01:16.1]} 25... Bd4 {[%clk 0:01:36.9]} 26. Rd3 {[%clk 0:01:14.6]} 26...
Be5 {[%clk 0:01:20.7]} 27. Kf3 {[%clk 0:01:11.7]} 27... Rb4 {[%clk 0:01:20.3]}
28. Ne4 {[%clk 0:01:10.9]} 28... g6 {[%clk 0:01:06.9]} 29. Nc5 {[%clk
0:01:10.5]} 29... Kg7 {[%clk 0:01:03.4]} 30. Re3 {[%clk 0:01:10.4]} 30... Re7
{[%clk 0:01:01.5]} 31. Nd3 {[%clk 0:01:09.8]} 1-0

[Event "Early-Titled-Tuesday-Blitz-May-14-2024"]
[Site "Chess.com"]
[Date "2024.05.14"]
[Round "8"]
[White "Likvidator228"]
[Black "Resourchess"]
[Result "1-0"]
[WhiteElo "2542"]
[BlackElo "2368"]
[TimeControl "180+1"]
[EndTime "9:28:32 PDT"]
[Termination "Likvidator228 won by resignation"]

1. h4 {[%clk 0:03:00.9]} 1... d5 {[%clk 0:02:56.4]} 2. h5 {[%clk 0:03:00.9]}
2... h6 {[%clk 0:02:56.2]} 3. d4 {[%clk 0:03:00.9]} 3... c6 {[%clk 0:02:50.9]}
4. Nf3 {[%clk 0:03:00.2]} 4... Nf6 {[%clk 0:02:46.7]} 5. Ne5 {[%clk 0:02:59.9]}
5... Bf5 {[%clk 0:02:43.4]} 6. Bf4 {[%clk 0:02:56]} 6... e6 {[%clk 0:02:36.9]}
7. e3 {[%clk 0:02:56.1]} 7... Ne4 {[%clk 0:02:29.1]} 8. f3 {[%clk 0:02:52.8]}
8... Nd6 {[%clk 0:02:20.2]} 9. g4 {[%clk 0:02:52.9]} 9... Bh7 {[%clk 0:02:19.7]}
10. Bd3 {[%clk 0:02:52.9]} 10... Nd7 {[%clk 0:01:59.6]} 11. Bxh7 {[%clk
0:02:51.8]} 11... Rxh7 {[%clk 0:01:56.2]} 12. Qd3 {[%clk 0:02:51.6]} 12... Rh8
{[%clk 0:01:52.7]} 13. Nd2 {[%clk 0:02:51.2]} 13... Nxe5 {[%clk 0:01:48.1]} 14.
Bxe5 {[%clk 0:02:49.9]} 14... Qb6 {[%clk 0:01:44]} 15. O-O-O {[%clk 0:02:48.1]}
15... O-O-O {[%clk 0:01:43.4]} 16. c4 {[%clk 0:02:40.6]} 16... dxc4 {[%clk
0:01:40]} 17. Nxc4 {[%clk 0:02:40.1]} 17... Nxc4 {[%clk 0:01:38.3]} 18. Qxc4
{[%clk 0:02:40.4]} 18... Qb5 {[%clk 0:01:26.4]} 19. Qxb5 {[%clk 0:02:38.2]}
19... cxb5 {[%clk 0:01:27]} 20. Kb1 {[%clk 0:02:38.3]} 20... f6 {[%clk
0:00:43.6]} 21. Rc1+ {[%clk 0:02:36.5]} 21... Kd7 {[%clk 0:00:44.2]} 22. Rc7+
{[%clk 0:02:36.3]} 22... Ke8 {[%clk 0:00:44.6]} 23. Bf4 {[%clk 0:02:32.3]} 23...
Rd7 {[%clk 0:00:44.7]} 24. Rhc1 {[%clk 0:02:31.3]} 24... e5 {[%clk 0:00:19.9]}
25. dxe5 {[%clk 0:02:30.6]} 25... fxe5 {[%clk 0:00:18.6]} 26. Bxe5 {[%clk
0:02:31]} 26... Be7 {[%clk 0:00:16]} 27. Rxd7 {[%clk 0:02:28]} 27... Kxd7 {[%clk
0:00:16]} 28. Rc7+ {[%clk 0:02:28.6]} 28... Ke6 {[%clk 0:00:16.4]} 29. Bxg7
{[%clk 0:02:28.5]} 29... Rh7 {[%clk 0:00:14.6]} 30. Bd4 {[%clk 0:02:22]} 30...
Rf7 {[%clk 0:00:14.9]} 31. f4 {[%clk 0:02:19.5]} 31... a6 {[%clk 0:00:14.8]} 32.
Rxb7 {[%clk 0:02:12.8]} 32... Kd5 {[%clk 0:00:14.8]} 33. Kc2 {[%clk 0:02:07.6]}
33... b4 {[%clk 0:00:12]} 34. Kd3 {[%clk 0:02:06]} 34... Ke6 {[%clk 0:00:10.6]}
35. Rb6+ {[%clk 0:02:05.6]} 35... Kd7 {[%clk 0:00:10.3]} 36. Rxh6 {[%clk
0:02:03.7]} 1-0

[Event "Early-Titled-Tuesday-Blitz-May-14-2024"]
[Site "Chess.com"]
[Date "2024.05.14"]
[Round "8"]
[White "fandebobbyfischer"]
[Black "vladgoncharov"]
[Result "1/2-1/2"]
[WhiteElo "2707"]
[BlackElo "2576"]
[TimeControl "180+1"]
[EndTime "9:28:33 PDT"]
[Termination "Game drawn by repetition"]

1. e4 {[%clk 0:03:00.9]} 1... e6 {[%clk 0:03:00]} 2. d4 {[%clk 0:02:53.5]} 2...
d5 {[%clk 0:02:59.4]} 3. Nd2 {[%clk 0:02:53.9]} 3... c5 {[%clk 0:02:55.1]} 4.
exd5 {[%clk 0:02:51.3]} 4... exd5 {[%clk 0:02:54.8]} 5. Ngf3 {[%clk 0:02:51.3]}
5... Nc6 {[%clk 0:02:54.5]} 6. Bb5 {[%clk 0:02:51.9]} 6... Bd6 {[%clk 0:02:54]}
7. O-O {[%clk 0:02:50.1]} 7... Ne7 {[%clk 0:02:52.5]} 8. dxc5 {[%clk 0:02:50.6]}
8... Bxc5 {[%clk 0:02:52.6]} 9. Nb3 {[%clk 0:02:50.3]} 9... Bd6 {[%clk
0:02:52.6]} 10. Bg5 {[%clk 0:02:42]} 10... O-O {[%clk 0:02:51.3]} 11. Re1 {[%clk
0:02:42]} 11... Bg4 {[%clk 0:02:45.6]} 12. h3 {[%clk 0:02:38.2]} 12... Bh5
{[%clk 0:02:44.7]} 13. Bxc6 {[%clk 0:02:21.7]} 13... bxc6 {[%clk 0:02:44.2]} 14.
Nbd4 {[%clk 0:02:22.4]} 14... Qc7 {[%clk 0:02:29.8]} 15. Bxe7 {[%clk 0:02:16.9]}
15... Bxe7 {[%clk 0:02:29.6]} 16. Nxc6 {[%clk 0:02:16.8]} 16... Qxc6 {[%clk
0:02:27.1]} 17. Rxe7 {[%clk 0:02:16.5]} 17... Bxf3 {[%clk 0:02:26.8]} 18. Qxf3
{[%clk 0:02:14.1]} 18... Qxc2 {[%clk 0:02:26.4]} 19. Qxd5 {[%clk 0:02:14.7]}
19... Qxb2 {[%clk 0:02:25.7]} 20. Rae1 {[%clk 0:02:14.6]} 20... Qb4 {[%clk
0:01:43.2]} 21. R1e4 {[%clk 0:01:59.5]} 21... Qb8 {[%clk 0:01:05.3]} 22. Rb7
{[%clk 0:01:24.4]} 22... Qc8 {[%clk 0:01:01.7]} 23. Ree7 {[%clk 0:01:19]} 23...
Qc1+ {[%clk 0:01:01]} 24. Kh2 {[%clk 0:01:18.9]} 24... Qf4+ {[%clk 0:01:01.1]}
25. Kg1 {[%clk 0:01:18.8]} 25... Qc1+ {[%clk 0:00:43.1]} 26. Kh2 {[%clk
0:01:18.5]} 26... Qf4+ {[%clk 0:00:38.1]} 27. Kg1 {[%clk 0:01:18.5]} 27... Qc1+
{[%clk 0:00:37.7]} 1/2-1/2

[Event "Early-Titled-Tuesday-Blitz-May-14-2024"]
[Site "Chess.com"]
[Date "2024.05.14"]
[Round "8"]
[White "Ariadna_Atreides"]
[Black "olakenn"]
[Result "1-0"]
[WhiteElo "2223"]
[BlackElo "1927"]
[TimeControl "180+1"]
[EndTime "9:28:40 PDT"]
[Termination "Ariadna_Atreides won on time"]

1. d4 {[%clk 0:03:00.9]} 1... Nf6 {[%clk 0:01:06.9]} 2. Nf3 {[%clk 0:02:37]}
2... d5 {[%clk 0:01:06.8]} 3. e3 {[%clk 0:02:35.9]} 3... c6 {[%clk 0:01:06.3]}
4. Bd3 {[%clk 0:02:36.2]} 4... Nbd7 {[%clk 0:01:03.4]} 5. O-O {[%clk 0:02:36.4]}
5... Nb6 {[%clk 0:00:40.5]} 6. Nbd2 {[%clk 0:02:36.1]} 6... Bg4 {[%clk
0:00:39.9]} 7. h3 {[%clk 0:02:34.6]} 7... Bxf3 {[%clk 0:00:39.8]} 8. Nxf3 {[%clk
0:02:34.9]} 8... e6 {[%clk 0:00:39.8]} 9. b3 {[%clk 0:02:34.9]} 9... Bd6 {[%clk
0:00:35.6]} 10. a4 {[%clk 0:02:32.9]} 10... Rc8 {[%clk 0:00:35.2]} 11. a5 {[%clk
0:02:32]} 11... Nbd7 {[%clk 0:00:34]} 12. Bb2 {[%clk 0:02:19.4]} 12... Bb8
{[%clk 0:00:33.8]} 13. Ne5 {[%clk 0:02:16.8]} 13... Qc7 {[%clk 0:00:32]} 14. f4
{[%clk 0:02:14.7]} 14... O-O {[%clk 0:00:25.4]} 15. Qf3 {[%clk 0:02:12.2]} 15...
Nxe5 {[%clk 0:00:18.9]} 16. fxe5 {[%clk 0:02:10.3]} 16... Nd7 {[%clk 0:00:19.1]}
17. Qh5 {[%clk 0:02:07.5]} 17... g6 {[%clk 0:00:18.2]} 18. Qh6 {[%clk 0:02:04]}
18... f5 {[%clk 0:00:17]} 19. exf6 {[%clk 0:02:02.2]} 19... Nxf6 {[%clk
0:00:16.5]} 20. Ba3 {[%clk 0:01:55.6]} 20... Rf7 {[%clk 0:00:15.7]} 21. Rf3
{[%clk 0:01:50.3]} 21... Ne4 {[%clk 0:00:15.2]} 22. Raf1 {[%clk 0:01:44.8]}
22... Rxf3 {[%clk 0:00:09.5]} 23. Rxf3 {[%clk 0:01:44.4]} 23... Qh2+ {[%clk
0:00:06.5]} 24. Kf1 {[%clk 0:01:43.7]} 24... Qh1+ {[%clk 0:00:06.5]} 25. Ke2
{[%clk 0:01:43.6]} 25... Qc1 {[%clk 0:00:00.3]} 26. Rf8+ {[%clk 0:01:40.4]} 1-0

[Event "Early-Titled-Tuesday-Blitz-May-14-2024"]
[Site "Chess.com"]
[Date "2024.05.14"]
[Round "8"]
[White "Mbneu"]
[Black "NiranjanNavalgund"]
[Result "1-0"]
[WhiteElo "2227"]
[BlackElo "2426"]
[TimeControl "180+1"]
[EndTime "9:28:42 PDT"]
[Termination "Mbneu won by checkmate"]

1. d4 {[%clk 0:02:59.5]} 1... d6 {[%clk 0:03:00.9]} 2. f4 {[%clk 0:02:58.8]}
2... e5 {[%clk 0:02:20.6]} 3. dxe5 {[%clk 0:02:58.1]} 3... Nc6 {[%clk
0:02:19.3]} 4. Nf3 {[%clk 0:02:55.9]} 4... Bg4 {[%clk 0:02:18.4]} 5. e4 {[%clk
0:02:51.9]} 5... dxe5 {[%clk 0:02:17.4]} 6. Qxd8+ {[%clk 0:02:50.2]} 6... Rxd8
{[%clk 0:02:16.9]} 7. Bb5 {[%clk 0:02:48.2]} 7... Bxf3 {[%clk 0:02:13.8]} 8.
gxf3 {[%clk 0:02:46.8]} 8... Bb4+ {[%clk 0:02:13.2]} 9. c3 {[%clk 0:02:46.1]}
9... Bd6 {[%clk 0:02:13.1]} 10. Nd2 {[%clk 0:02:40.4]} 10... Ne7 {[%clk
0:02:09.9]} 11. Nc4 {[%clk 0:02:40.2]} 11... exf4 {[%clk 0:02:07]} 12. Nxd6+
{[%clk 0:02:38.3]} 12... Rxd6 {[%clk 0:02:06.5]} 13. Bxf4 {[%clk 0:02:35.5]}
13... Rf6 {[%clk 0:02:07.2]} 14. Bxc7 {[%clk 0:02:27.2]} 14... Rxf3 {[%clk
0:02:07.7]} 15. O-O-O {[%clk 0:02:27]} 15... O-O {[%clk 0:02:07.4]} 16. Bd6
{[%clk 0:02:08.3]} 16... h6 {[%clk 0:02:04.5]} 17. Bxe7 {[%clk 0:01:28.7]} 17...
Nxe7 {[%clk 0:02:03.3]} 18. Rd7 {[%clk 0:01:29.3]} 18... Ng6 {[%clk 0:02:02.9]}
19. Rxb7 {[%clk 0:01:26.5]} 19... Rf2 {[%clk 0:02:03]} 20. Rd1 {[%clk
0:01:21.6]} 20... Rxh2 {[%clk 0:02:01.7]} 21. Bc4 {[%clk 0:01:21]} 21... Ne5
{[%clk 0:02:00.5]} 22. Bb3 {[%clk 0:01:20.4]} 22... a6 {[%clk 0:01:59.5]} 23. a4
{[%clk 0:01:18.3]} 23... Rc8 {[%clk 0:01:57.9]} 24. Kb1 {[%clk 0:01:17.6]} 24...
Nf3 {[%clk 0:01:56.6]} 25. Rdd7 {[%clk 0:01:16.3]} 25... Nd2+ {[%clk 0:01:56]}
26. Ka2 {[%clk 0:01:15.7]} 26... Nxe4 {[%clk 0:01:54.8]} 27. Rxf7 {[%clk
0:01:13.4]} 27... Nxc3+ {[%clk 0:01:54.6]} 28. Ka3 {[%clk 0:01:08.5]} 28... Nb1+
{[%clk 0:01:54]} 29. Kb4 {[%clk 0:01:07]} 29... a5+ {[%clk 0:01:48.7]} 30. Kxa5
{[%clk 0:01:00.4]} 30... Kh8 {[%clk 0:01:42.8]} 31. Rxg7 {[%clk 0:00:59.1]}
31... Rh5+ {[%clk 0:01:32.4]} 32. Kb6 {[%clk 0:00:58.4]} 32... Rd5 {[%clk
0:01:11.6]} 33. Bxd5 {[%clk 0:00:50.6]} 33... Rc6+ {[%clk 0:01:12.2]} 34. Kxc6
{[%clk 0:00:49.4]} 34... Nc3 {[%clk 0:01:13.1]} 35. Rh7# {[%clk 0:00:47.8]} 1-0

[Event "Early-Titled-Tuesday-Blitz-May-14-2024"]
[Site "Chess.com"]
[Date "2024.05.14"]
[Round "8"]
[White "ChessBliss09"]
[Black "LileKoridze"]
[Result "0-1"]
[WhiteElo "2243"]
[BlackElo "2415"]
[TimeControl "180+1"]
[EndTime "9:28:47 PDT"]
[Termination "LileKoridze won by checkmate"]

1. c4 {[%clk 0:03:00.9]} 1... e5 {[%clk 0:02:59.8]} 2. Nc3 {[%clk 0:03:00.2]}
2... Nf6 {[%clk 0:02:59.6]} 3. Nf3 {[%clk 0:03:00.2]} 3... Nc6 {[%clk
0:02:59.5]} 4. g3 {[%clk 0:03:00.1]} 4... Bb4 {[%clk 0:02:58.1]} 5. d3 {[%clk
0:03:00.4]} 5... O-O {[%clk 0:02:57.7]} 6. Bg2 {[%clk 0:03:00.1]} 6... d5 {[%clk
0:02:56.9]} 7. cxd5 {[%clk 0:03:01]} 7... Nxd5 {[%clk 0:02:57.7]} 8. Bd2 {[%clk
0:03:01.3]} 8... Be6 {[%clk 0:02:57.1]} 9. O-O {[%clk 0:03:00.3]} 9... Re8
{[%clk 0:02:56.5]} 10. a3 {[%clk 0:03:00.1]} 10... Ba5 {[%clk 0:02:56.4]} 11. b4
{[%clk 0:02:58.5]} 11... Bb6 {[%clk 0:02:56.1]} 12. Rc1 {[%clk 0:02:58.1]} 12...
f6 {[%clk 0:02:49.9]} 13. Na4 {[%clk 0:02:52]} 13... Bd4 {[%clk 0:02:49.8]} 14.
e3 {[%clk 0:02:33.5]} 14... Bb6 {[%clk 0:02:45.6]} 15. Nc5 {[%clk 0:02:33]}
15... Bxc5 {[%clk 0:02:43.8]} 16. Rxc5 {[%clk 0:02:33.9]} 16... Qd7 {[%clk
0:02:42.7]} 17. Qc2 {[%clk 0:02:25.7]} 17... a6 {[%clk 0:02:32.5]} 18. Rc1
{[%clk 0:02:21]} 18... Rad8 {[%clk 0:02:32.4]} 19. d4 {[%clk 0:01:59.3]} 19...
exd4 {[%clk 0:02:24.5]} 20. Nxd4 {[%clk 0:01:58.7]} 20... Nxd4 {[%clk
0:02:24.8]} 21. exd4 {[%clk 0:01:58.8]} 21... c6 {[%clk 0:02:24.4]} 22. a4
{[%clk 0:01:55.9]} 22... Bh3 {[%clk 0:02:16.9]} 23. Bxd5+ {[%clk 0:01:49.3]}
23... cxd5 {[%clk 0:02:15.9]} 24. Rc7 {[%clk 0:01:46.8]} 24... Qg4 {[%clk
0:02:15]} 25. Qd3 {[%clk 0:01:39.9]} 25... Rc8 {[%clk 0:02:04.5]} 26. Rxc8
{[%clk 0:01:20.3]} 26... Rxc8 {[%clk 0:02:04.2]} 27. Rxc8+ {[%clk 0:01:13.8]}
27... Qxc8 {[%clk 0:02:03.4]} 28. Qf3 {[%clk 0:01:05.2]} 28... Qc4 {[%clk
0:02:00.5]} 29. Qd1 {[%clk 0:00:57.1]} 29... Qxd4 {[%clk 0:02:00]} 30. Qe1
{[%clk 0:00:54.5]} 30... h6 {[%clk 0:01:55.6]} 31. Bc3 {[%clk 0:00:47.9]} 31...
Qd3 {[%clk 0:01:52.1]} 32. Qe8+ {[%clk 0:00:22.5]} 32... Kh7 {[%clk 0:01:50.9]}
33. Qe1 {[%clk 0:00:23.1]} 33... Qf3 {[%clk 0:01:48.9]} 34. Qb1+ {[%clk
0:00:12.7]} 34... Kg8 {[%clk 0:01:48.3]} 35. Qc2 {[%clk 0:00:05.1]} 35... Qg2#
{[%clk 0:01:48.5]} 0-1

[Event "Early-Titled-Tuesday-Blitz-May-14-2024"]
[Site "Chess.com"]
[Date "2024.05.14"]
[Round "8"]
[White "dinushkipremanath"]
[Black "romulocardoso"]
[Result "0-1"]
[WhiteElo "2005"]
[BlackElo "2318"]
[TimeControl "180+1"]
[EndTime "9:28:49 PDT"]
[Termination "romulocardoso won by resignation"]

1. d4 {[%clk 0:03:00.9]} 1... Nf6 {[%clk 0:02:59.1]} 2. Nf3 {[%clk 0:03:01.5]}
2... e6 {[%clk 0:02:59.7]} 3. Bf4 {[%clk 0:03:01.6]} 3... d5 {[%clk 0:03:00.3]}
4. Nbd2 {[%clk 0:03:02]} 4... Bd6 {[%clk 0:02:59.9]} 5. e3 {[%clk 0:03:02.1]}
5... O-O {[%clk 0:03:00.2]} 6. Bd3 {[%clk 0:03:01.7]} 6... c5 {[%clk 0:03:00.5]}
7. c3 {[%clk 0:03:01.5]} 7... Nc6 {[%clk 0:03:00.6]} 8. Bg3 {[%clk 0:03:00.7]}
8... Qc7 {[%clk 0:03:00.9]} 9. dxc5 {[%clk 0:02:47.6]} 9... Bxg3 {[%clk
0:02:58.8]} 10. hxg3 {[%clk 0:02:46.5]} 10... h6 {[%clk 0:02:59.1]} 11. b4
{[%clk 0:02:38.9]} 11... a6 {[%clk 0:02:53.3]} 12. a4 {[%clk 0:02:37.8]} 12...
e5 {[%clk 0:02:51.8]} 13. Bc2 {[%clk 0:02:36.8]} 13... e4 {[%clk 0:02:51.3]} 14.
Nd4 {[%clk 0:02:31.1]} 14... Bg4 {[%clk 0:02:51.5]} 15. Qb1 {[%clk 0:02:27.8]}
15... Ne5 {[%clk 0:02:40.1]} 16. O-O {[%clk 0:02:22.2]} 16... Nh5 {[%clk
0:02:18.3]} 17. Bd1 {[%clk 0:02:19.1]} 17... f5 {[%clk 0:02:13.3]} 18. Kh2
{[%clk 0:02:08.5]} 18... g5 {[%clk 0:02:00.3]} 19. Rh1 {[%clk 0:02:04.7]} 19...
f4 {[%clk 0:01:59.5]} 20. Nf1 {[%clk 0:01:52.5]} 20... fxg3+ {[%clk 0:01:55.5]}
21. Nxg3 {[%clk 0:01:44.8]} 21... Rxf2 {[%clk 0:01:54.8]} 22. Qb3 {[%clk
0:00:47]} 22... Nf3+ {[%clk 0:01:52.4]} 23. Bxf3 {[%clk 0:00:39.9]} 23... Qxg3+
{[%clk 0:01:52.8]} 24. Kg1 {[%clk 0:00:38]} 24... Bxf3 {[%clk 0:01:39.2]} 25.
Qxd5+ {[%clk 0:00:31.9]} 25... Kh8 {[%clk 0:01:39.1]} 26. Rh2 {[%clk 0:00:18.9]}
26... Rxg2+ {[%clk 0:01:37]} 0-1